[Event "Titled Tuesday Blitz May 16 Late 2023"]
[White "Krzyzanowski, Marcin"]
[Black "Mendez Fortes, Eduardo Jesus"]
[WhiteFideId "1132199"]
[BlackFideId "3502376"]
[WhiteElo "2471"]
[BlackElo "2307"]
[Result "1-0"]
[Round "05"]
[TimeControl "180+2"]
[Date "2023.05.16"]
[WhiteClock "0:00:02"]
[BlackClock "0:00:03"]

1. Nf3 {[%clk 0:03:00]}  d5 {[%clk 0:02:54]} 2. g3 {[%clk 0:02:57]}  Nf6 {[%clk 0:02:54]} 3. Bg2 {[%clk 0:02:57]}  e6 {[%clk 0:02:55]} 4. O-O {[%clk 0:02:54]}  Be7 {[%clk 0:02:52]} 5. c4 {[%clk 0:02:54]}  O-O {[%clk 0:02:51]} 6. b3 {[%clk 0:02:51]}  d4 {[%clk 0:02:51]} 7. e3 {[%clk 0:02:47]}  c5 {[%clk 0:02:51]} 8. exd4 {[%clk 0:02:47]}  cxd4 {[%clk 0:02:52]} 9. Re1 {[%clk 0:02:43]}  Nc6 {[%clk 0:02:52]} 10. d3 {[%clk 0:02:40]}  a5 {[%clk 0:02:50]} 11. Ne5 {[%clk 0:02:39]}  Nxe5 {[%clk 0:02:50]} 12. Rxe5 {[%clk 0:02:40]}  Nd7 {[%clk 0:02:50]} 13. Re1 {[%clk 0:02:37]}  e5 {[%clk 0:02:51]} 14. Na3 {[%clk 0:02:23]}  Re8 {[%clk 0:02:42]} 15. Nb5 {[%clk 0:02:22]}  Bf8 {[%clk 0:02:39]} 16. Bd5 {[%clk 0:02:03]}  Nf6 {[%clk 0:01:41]} 17. Bf3 {[%clk 0:02:00]}  Rb8 {[%clk 0:01:34]} 18. Bg5 {[%clk 0:01:50]}  h6 {[%clk 0:01:32]} 19. Bd2 {[%clk 0:01:23]}  Bd7 {[%clk 0:01:30]} 20. a3 {[%clk 0:01:10]}  Bc6 {[%clk 0:01:28]} 21. Na7 {[%clk 0:00:56]}  Bd7 {[%clk 0:01:23]} 22. Nb5 {[%clk 0:00:43]}  Bf5 {[%clk 0:01:22]} 23. Qc2 {[%clk 0:00:36]}  Qd7 {[%clk 0:01:10]} 24. b4 {[%clk 0:00:35]}  Rbc8 {[%clk 0:01:10]} 25. Qb3 {[%clk 0:00:32]}  b6 {[%clk 0:01:04]} 26. bxa5 {[%clk 0:00:31]}  bxa5 {[%clk 0:01:05]} 27. Bxa5 {[%clk 0:00:30]}  e4 {[%clk 0:00:59]} 28. dxe4 {[%clk 0:00:30]}  Nxe4 {[%clk 0:00:59]} 29. Rad1 {[%clk 0:00:19]}  Nc5 {[%clk 0:00:54]} 30. Qa2 {[%clk 0:00:16]}  Nd3 {[%clk 0:00:46]} 31. Rxe8 {[%clk 0:00:16]}  Rxe8 {[%clk 0:00:46]} 32. Qd2 {[%clk 0:00:15]}  Ne5 {[%clk 0:00:42]} 33. Bd5 {[%clk 0:00:12]}  Bg4 {[%clk 0:00:30]} 34. Re1 {[%clk 0:00:05]}  Bf3 {[%clk 0:00:23]} 35. Rxe5 {[%clk 0:00:03]}  Bxd5 {[%clk 0:00:14]} 36. Rxd5 {[%clk 0:00:04]}  Qg4 {[%clk 0:00:10]} 37. Bb4 {[%clk 0:00:03]}  d3 {[%clk 0:00:09]} 38. Rxd3 {[%clk 0:00:02]}  Bxb4 {[%clk 0:00:08]} 39. axb4 {[%clk 0:00:02]}  Qxc4 {[%clk 0:00:08]} 40. Nc3 {[%clk 0:00:01]}  Qxb4 {[%clk 0:00:05]} 41. h4 {[%clk 0:00:01]}  Kh7 {[%clk 0:00:04]} 42. Kh2 {[%clk 0:00:02]}  Qb6 {[%clk 0:00:04]} 43. Rd4 {[%clk 0:00:02]}  g6 {[%clk 0:00:04]} 44. Qd3 {[%clk 0:00:03]}  Rc8 {[%clk 0:00:04]} 45. Kg2 {[%clk 0:00:04]}  Qb3 {[%clk 0:00:04]} 46. Rd7 {[%clk 0:00:02]}  Rxc3 {[%clk 0:00:04]} 47. Rxf7+ {[%clk 0:00:02]}  Qxf7 {[%clk 0:00:04]} 48. Qxc3 {[%clk 0:00:03]}  Qd5+ {[%clk 0:00:05]} 49. Qf3 {[%clk 0:00:03]}  Qd7 {[%clk 0:00:05]} 50. Qe4 {[%clk 0:00:03]}  Qf7 {[%clk 0:00:05]} 51. h5 {[%clk 0:00:03]}  Kg7 {[%clk 0:00:04]} 52. Qxg6+ {[%clk 0:00:03]}  Qxg6 {[%clk 0:00:05]} 53. hxg6 {[%clk 0:00:04]}  Kxg6 {[%clk 0:00:06]} 54. Kf3 {[%clk 0:00:04]}  Kg5 {[%clk 0:00:07]} 55. g4 {[%clk 0:00:03]}  Kh4 {[%clk 0:00:04]} 56. Kf4 {[%clk 0:00:03]}  Kh3 {[%clk 0:00:05]} 57. g5 {[%clk 0:00:03]}  Kg2 {[%clk 0:00:03]} 58. gxh6 {[%clk 0:00:02]} 1-0


[Site "https://www.chess.com"]

[Event "Titled Tuesday Blitz May 16 Late 2023"]
[White "Quispe Arteaga, Gabriel"]
[Black "Popilski, Gil"]
[WhiteFideId "32059809"]
[BlackFideId "2809060"]
[WhiteElo "2274"]
[BlackElo "2537"]
[Result "1-0"]
[Round "05"]
[TimeControl "180+2"]
[Date "2023.05.16"]
[WhiteClock "0:00:16"]
[BlackClock "0:00:00"]

1. c4 {[%clk 0:02:52]}  e6 {[%clk 0:02:40]} 2. Nc3 {[%clk 0:02:46]}  Bb4 {[%clk 0:02:39]} 3. Nf3 {[%clk 0:02:45]}  c5 {[%clk 0:02:38]} 4. g3 {[%clk 0:02:44]}  Nc6 {[%clk 0:02:35]} 5. Bg2 {[%clk 0:02:44]}  Nf6 {[%clk 0:02:35]} 6. O-O {[%clk 0:02:44]}  O-O {[%clk 0:02:34]} 7. d3 {[%clk 0:02:36]}  h6 {[%clk 0:02:32]} 8. Qc2 {[%clk 0:02:10]}  Qe7 {[%clk 0:02:29]} 9. a3 {[%clk 0:02:08]}  Ba5 {[%clk 0:02:28]} 10. e4 {[%clk 0:02:02]}  d6 {[%clk 0:02:23]} 11. h3 {[%clk 0:01:59]}  Nd7 {[%clk 0:02:20]} 12. Be3 {[%clk 0:01:56]}  Nde5 {[%clk 0:02:18]} 13. Ne2 {[%clk 0:01:42]}  Nxf3+ {[%clk 0:02:02]} 14. Bxf3 {[%clk 0:01:41]}  e5 {[%clk 0:02:01]} 15. Bg2 {[%clk 0:01:41]}  f5 {[%clk 0:02:00]} 16. f4 {[%clk 0:01:31]}  fxe4 {[%clk 0:01:59]} 17. dxe4 {[%clk 0:01:31]}  Nd4 {[%clk 0:01:56]} 18. Qd3 {[%clk 0:01:17]}  Bd7 {[%clk 0:01:46]} 19. Nc3 {[%clk 0:01:12]}  Rae8 {[%clk 0:01:29]} 20. Nd5 {[%clk 0:01:06]}  Qd8 {[%clk 0:01:28]} 21. Bxd4 {[%clk 0:01:05]}  cxd4 {[%clk 0:01:25]} 22. b4 {[%clk 0:01:02]}  Bb6 {[%clk 0:01:24]} 23. f5 {[%clk 0:00:44]}  Bc6 {[%clk 0:01:20]} 24. Kh2 {[%clk 0:00:44]}  Bxd5 {[%clk 0:01:19]} 25. exd5 {[%clk 0:00:44]}  Qg5 {[%clk 0:01:17]} 26. Be4 {[%clk 0:00:42]}  Rc8 {[%clk 0:01:12]} 27. Rae1 {[%clk 0:00:38]}  h5 {[%clk 0:01:04]} 28. h4 {[%clk 0:00:36]}  Qh6 {[%clk 0:01:04]} 29. f6 {[%clk 0:00:26]}  Rxf6 {[%clk 0:00:59]} 30. Rxf6 {[%clk 0:00:26]}  Qxf6 {[%clk 0:00:57]} 31. Rf1 {[%clk 0:00:26]}  Qh6 {[%clk 0:00:54]} 32. Qf3 {[%clk 0:00:26]}  Qf6 {[%clk 0:00:41]} 33. Bf5 {[%clk 0:00:19]}  Rxc4 {[%clk 0:00:20]} 34. Be6+ {[%clk 0:00:20]}  Kf8 {[%clk 0:00:09]} 35. Qe2 {[%clk 0:00:20]}  Rc7 {[%clk 0:00:04]} 36. Rxf6+ {[%clk 0:00:20]}  gxf6 {[%clk 0:00:04]} 37. Qxh5 {[%clk 0:00:20]}  d3 {[%clk 0:00:04]} 38. Qh8+ {[%clk 0:00:20]}  Ke7 {[%clk 0:00:04]} 39. Qh7+ {[%clk 0:00:18]}  Kd8 {[%clk 0:00:03]} 40. Qxd3 {[%clk 0:00:18]}  Bd4 {[%clk 0:00:03]} 41. Qf5 {[%clk 0:00:17]}  Rc1 {[%clk 0:00:02]} 42. Qxf6+ {[%clk 0:00:17]}  Kc7 {[%clk 0:00:03]} 43. Qe7+ {[%clk 0:00:17]}  Kb6 {[%clk 0:00:03]} 44. Qxd6+ {[%clk 0:00:18]}  Kb5 {[%clk 0:00:04]} 45. Qd7+ {[%clk 0:00:18]}  Kc4 {[%clk 0:00:03]} 46. d6+ {[%clk 0:00:18]}  Kd3 {[%clk 0:00:03]} 47. Qf7 {[%clk 0:00:18]}  Ke3 {[%clk 0:00:04]} 48. d7 {[%clk 0:00:17]}  Rc2+ {[%clk 0:00:05]} 49. Kh3 {[%clk 0:00:18]}  e4 {[%clk 0:00:04]} 50. d8=Q {[%clk 0:00:17]}  Be5 {[%clk 0:00:05]} 51. Qd5 {[%clk 0:00:17]}  Rc3 {[%clk 0:00:00]} 52. Qxe5 {[%clk 0:00:16]} 1-0


[Site "https://www.chess.com"]

[Event "Titled Tuesday Blitz May 16 Late 2023"]
[White "Kravtsiv, Martyn"]
[Black "Gritsenko, Nikolai"]
[WhiteFideId "14113147"]
[BlackFideId "14112493"]
[WhiteElo "2695"]
[BlackElo "2389"]
[Result "0-1"]
[Round "05"]
[TimeControl "180+2"]
[Date "2023.05.16"]
[WhiteClock "0:00:00"]
[BlackClock "0:00:08"]

1. e4 {[%clk 0:03:00]}  d5 {[%clk 0:02:59]} 2. exd5 {[%clk 0:03:00]}  Nf6 {[%clk 0:02:59]} 3. d4 {[%clk 0:02:59]}  Bg4 {[%clk 0:02:58]} 4. f3 {[%clk 0:02:58]}  Bf5 {[%clk 0:02:58]} 5. g4 {[%clk 0:02:51]}  Bg6 {[%clk 0:02:55]} 6. c4 {[%clk 0:02:51]}  e6 {[%clk 0:02:50]} 7. Nc3 {[%clk 0:02:51]}  exd5 {[%clk 0:02:36]} 8. g5 {[%clk 0:02:51]}  Nfd7 {[%clk 0:02:24]} 9. Nxd5 {[%clk 0:02:46]}  Bd6 {[%clk 0:02:21]} 10. Qe2+ {[%clk 0:02:42]}  Kf8 {[%clk 0:02:20]} 11. h4 {[%clk 0:02:38]}  c5 {[%clk 0:01:41]} 12. h5 {[%clk 0:01:44]}  Bf5 {[%clk 0:01:40]} 13. Bh3 {[%clk 0:01:41]}  Bxh3 {[%clk 0:01:36]} 14. Nxh3 {[%clk 0:01:42]}  cxd4 {[%clk 0:01:33]} 15. O-O {[%clk 0:01:35]}  Nc6 {[%clk 0:01:31]} 16. Kg2 {[%clk 0:01:28]}  h6 {[%clk 0:01:24]} 17. b3 {[%clk 0:01:20]}  hxg5 {[%clk 0:01:19]} 18. Bxg5 {[%clk 0:01:19]}  f6 {[%clk 0:01:14]} 19. Nhf4 {[%clk 0:01:17]}  Bxf4 {[%clk 0:00:56]} 20. Nxf4 {[%clk 0:01:18]}  Qe8 {[%clk 0:00:55]} 21. Ng6+ {[%clk 0:01:15]}  Kf7 {[%clk 0:00:43]} 22. Nxh8+ {[%clk 0:01:06]}  Qxh8 {[%clk 0:00:43]} 23. Bf4 {[%clk 0:01:02]}  Re8 {[%clk 0:00:34]} 24. Qd3 {[%clk 0:01:02]}  Qxh5 {[%clk 0:00:32]} 25. Rh1 {[%clk 0:01:01]}  Qg6+ {[%clk 0:00:27]} 26. Qxg6+ {[%clk 0:01:01]}  Kxg6 {[%clk 0:00:27]} 27. Rhe1 {[%clk 0:00:58]}  Nde5 {[%clk 0:00:27]} 28. Rad1 {[%clk 0:00:56]}  Kf5 {[%clk 0:00:25]} 29. Bg3 {[%clk 0:00:54]}  Rd8 {[%clk 0:00:25]} 30. a3 {[%clk 0:00:39]}  a5 {[%clk 0:00:25]} 31. f4 {[%clk 0:00:35]}  Ng4 {[%clk 0:00:24]} 32. Kf3 {[%clk 0:00:19]}  g5 {[%clk 0:00:21]} 33. Rd2 {[%clk 0:00:14]}  gxf4 {[%clk 0:00:19]} 34. Bxf4 {[%clk 0:00:15]}  Nge5+ {[%clk 0:00:19]} 35. Bxe5 {[%clk 0:00:15]}  fxe5 {[%clk 0:00:19]} 36. Rh2 {[%clk 0:00:13]}  e4+ {[%clk 0:00:11]} 37. Ke2 {[%clk 0:00:13]}  Ne5 {[%clk 0:00:09]} 38. Rh5+ {[%clk 0:00:11]}  Kf4 {[%clk 0:00:09]} 39. Rh4+ {[%clk 0:00:10]}  Kf5 {[%clk 0:00:09]} 40. Rh5+ {[%clk 0:00:09]}  Kf4 {[%clk 0:00:09]} 41. Rh4+ {[%clk 0:00:09]}  Ng4 {[%clk 0:00:08]} 42. Rf1+ {[%clk 0:00:09]}  Kg5 {[%clk 0:00:07]} 43. Rh7 {[%clk 0:00:10]}  d3+ {[%clk 0:00:07]} 44. Kd1 {[%clk 0:00:08]}  Ne3+ {[%clk 0:00:07]} 45. Ke1 {[%clk 0:00:04]}  Nxf1 {[%clk 0:00:08]} 46. Kxf1 {[%clk 0:00:00]}  d2 {[%clk 0:00:08]} 0-1


[Site "https://www.chess.com"]

[Event "Titled Tuesday Blitz May 16 Late 2023"]
[White "Khandelwal, Ankush"]
[Black "Remizov, Yaroslav"]
[WhiteFideId "413470"]
[BlackFideId "34134015"]
[WhiteElo "2263"]
[BlackElo "2400"]
[Result "0-1"]
[Round "05"]
[TimeControl "180+2"]
[Date "2023.05.16"]
[WhiteClock "0:00:37"]
[BlackClock "0:02:16"]

1. e4 {[%clk 0:03:00]}  c5 {[%clk 0:02:59]} 2. Nf3 {[%clk 0:02:58]}  e6 {[%clk 0:03:00]} 3. d4 {[%clk 0:02:56]}  cxd4 {[%clk 0:03:00]} 4. Nxd4 {[%clk 0:02:57]}  Nf6 {[%clk 0:03:00]} 5. Nc3 {[%clk 0:02:56]}  Nc6 {[%clk 0:03:01]} 6. Nxc6 {[%clk 0:02:52]}  bxc6 {[%clk 0:03:01]} 7. e5 {[%clk 0:02:51]}  Nd5 {[%clk 0:03:00]} 8. Ne4 {[%clk 0:02:50]}  Qc7 {[%clk 0:03:01]} 9. f4 {[%clk 0:02:50]}  Rb8 {[%clk 0:03:01]} 10. c4 {[%clk 0:02:46]}  Bb4+ {[%clk 0:03:01]} 11. Ke2 {[%clk 0:02:45]}  O-O {[%clk 0:03:01]} 12. cxd5 {[%clk 0:02:44]}  cxd5 {[%clk 0:02:55]} 13. Ng5 {[%clk 0:02:44]}  d6 {[%clk 0:02:49]} 14. a3 {[%clk 0:02:36]}  Ba5 {[%clk 0:02:49]} 15. exd6 {[%clk 0:02:33]}  Qxd6 {[%clk 0:02:50]} 16. Qc2 {[%clk 0:02:30]}  g6 {[%clk 0:02:48]} 17. Nf3 {[%clk 0:02:29]}  Bd7 {[%clk 0:02:36]} 18. Kf2 {[%clk 0:02:23]}  Bb6+ {[%clk 0:02:30]} 19. Kg3 {[%clk 0:02:10]}  f6 {[%clk 0:02:28]} 20. h4 {[%clk 0:02:02]}  e5 {[%clk 0:02:25]} 21. h5 {[%clk 0:02:03]}  g5 {[%clk 0:02:19]} 22. fxe5 {[%clk 0:00:51]}  fxe5 {[%clk 0:02:20]} 23. Bxg5 {[%clk 0:00:44]}  e4+ {[%clk 0:02:19]} 24. Kh4 {[%clk 0:00:45]}  Rf4+ {[%clk 0:02:17]} 25. Kg3 {[%clk 0:00:38]}  Rg4+ {[%clk 0:02:16]} 26. Kh3 {[%clk 0:00:37]}  Qg3# {[%clk 0:02:16]} 0-1


[Site "https://www.chess.com"]

[Event "Titled Tuesday Blitz May 16 Late 2023"]
[White "Fernandez Guillen, Ernesto J."]
[Black "Loiacono, Antonio"]
[WhiteFideId "3512428"]
[BlackFideId "895415"]
[WhiteElo "2429"]
[BlackElo "2257"]
[Result "1-0"]
[Round "05"]
[TimeControl "180+2"]
[Date "2023.05.16"]
[WhiteClock "0:00:42"]
[BlackClock "0:00:33"]

1. e4 {[%clk 0:03:00]}  e5 {[%clk 0:02:59]} 2. Nf3 {[%clk 0:02:48]}  Nc6 {[%clk 0:02:58]} 3. d4 {[%clk 0:02:48]}  exd4 {[%clk 0:02:58]} 4. Bc4 {[%clk 0:02:48]}  Bc5 {[%clk 0:02:57]} 5. O-O {[%clk 0:02:47]}  d6 {[%clk 0:02:48]} 6. c3 {[%clk 0:02:47]}  Nf6 {[%clk 0:02:45]} 7. cxd4 {[%clk 0:02:47]}  Bb6 {[%clk 0:02:46]} 8. Nc3 {[%clk 0:02:34]}  O-O {[%clk 0:02:43]} 9. h3 {[%clk 0:02:34]}  Nxe4 {[%clk 0:02:33]} 10. Nxe4 {[%clk 0:01:48]}  d5 {[%clk 0:02:32]} 11. Bg5 {[%clk 0:01:47]}  f6 {[%clk 0:02:07]} 12. Bxf6 {[%clk 0:01:39]}  gxf6 {[%clk 0:02:04]} 13. Bb3 {[%clk 0:01:40]}  Na5 {[%clk 0:02:01]} 14. Ng3 {[%clk 0:01:39]}  Nxb3 {[%clk 0:02:01]} 15. Qxb3 {[%clk 0:01:37]}  c6 {[%clk 0:02:00]} 16. Rfe1 {[%clk 0:01:34]}  Kh8 {[%clk 0:01:55]} 17. Qe3 {[%clk 0:01:29]}  Bc7 {[%clk 0:01:47]} 18. Nh5 {[%clk 0:01:26]}  Qd7 {[%clk 0:01:35]} 19. Qh6 {[%clk 0:01:22]}  Qf7 {[%clk 0:01:35]} 20. Nh4 {[%clk 0:01:17]}  Kg8 {[%clk 0:01:10]} 21. Re3 {[%clk 0:01:05]}  Bd7 {[%clk 0:01:10]} 22. f4 {[%clk 0:01:01]}  Kh8 {[%clk 0:01:09]} 23. Re7 {[%clk 0:00:57]}  Qg8 {[%clk 0:00:33]} 24. Rg7 {[%clk 0:00:42]} 1-0


[Site "https://www.chess.com"]

[Event "Titled Tuesday Blitz May 16 Late 2023"]
[White "Ivanisevic, Ivan"]
[Black "Przybylski, Wojciech"]
[WhiteFideId "912417"]
[BlackFideId "1117599"]
[WhiteElo "2592"]
[BlackElo "2222"]
[Result "1-0"]
[Round "05"]
[TimeControl "180+2"]
[Date "2023.05.16"]
[WhiteClock "0:00:09"]
[BlackClock "0:00:03"]

1. Nf3 {[%clk 0:02:55]}  Nf6 {[%clk 0:02:59]} 2. c4 {[%clk 0:02:54]}  e6 {[%clk 0:02:59]} 3. b3 {[%clk 0:02:50]}  a5 {[%clk 0:02:56]} 4. Nc3 {[%clk 0:02:49]}  Be7 {[%clk 0:02:55]} 5. Bb2 {[%clk 0:02:48]}  d5 {[%clk 0:02:48]} 6. e3 {[%clk 0:02:47]}  O-O {[%clk 0:02:48]} 7. Rg1 {[%clk 0:02:42]}  c5 {[%clk 0:02:42]} 8. g4 {[%clk 0:02:35]}  Nc6 {[%clk 0:02:41]} 9. g5 {[%clk 0:02:35]}  Ne4 {[%clk 0:02:38]} 10. Bd3 {[%clk 0:01:32]}  Nxc3 {[%clk 0:02:31]} 11. dxc3 {[%clk 0:01:33]}  a4 {[%clk 0:02:23]} 12. Qc2 {[%clk 0:01:21]}  g6 {[%clk 0:02:22]} 13. h4 {[%clk 0:01:15]}  a3 {[%clk 0:02:03]} 14. Bc1 {[%clk 0:01:15]}  d4 {[%clk 0:02:02]} 15. h5 {[%clk 0:00:56]}  dxc3 {[%clk 0:01:47]} 16. Qxc3 {[%clk 0:00:55]}  Qa5 {[%clk 0:00:59]} 17. Bd2 {[%clk 0:00:54]}  Qxc3 {[%clk 0:00:56]} 18. Bxc3 {[%clk 0:00:54]}  Nb4 {[%clk 0:00:45]} 19. Be4 {[%clk 0:00:54]}  Ra6 {[%clk 0:00:30]} 20. Ke2 {[%clk 0:00:53]}  Nc6 {[%clk 0:00:18]} 21. Rad1 {[%clk 0:00:28]}  Bd8 {[%clk 0:00:17]} 22. Bxc6 {[%clk 0:00:21]}  bxc6 {[%clk 0:00:13]} 23. Ne5 {[%clk 0:00:22]}  gxh5 {[%clk 0:00:10]} 24. f4 {[%clk 0:00:21]}  Re8 {[%clk 0:00:06]} 25. Rh1 {[%clk 0:00:21]}  f6 {[%clk 0:00:07]} 26. gxf6 {[%clk 0:00:22]}  Bxf6 {[%clk 0:00:06]} 27. Rdg1+ {[%clk 0:00:23]}  Kf8 {[%clk 0:00:07]} 28. Rxh5 {[%clk 0:00:23]}  Re7 {[%clk 0:00:07]} 29. Rh6 {[%clk 0:00:22]}  Bg7 {[%clk 0:00:06]} 30. Rxh7 {[%clk 0:00:22]}  Bxe5 {[%clk 0:00:07]} 31. Rxe7 {[%clk 0:00:21]}  Kxe7 {[%clk 0:00:07]} 32. Bxe5 {[%clk 0:00:20]}  Bd7 {[%clk 0:00:07]} 33. Rg7+ {[%clk 0:00:20]}  Kd8 {[%clk 0:00:08]} 34. Bd6 {[%clk 0:00:20]}  Rb6 {[%clk 0:00:05]} 35. Bxc5 {[%clk 0:00:20]}  Rb7 {[%clk 0:00:05]} 36. Bd6 {[%clk 0:00:20]}  Rb6 {[%clk 0:00:05]} 37. Bxa3 {[%clk 0:00:16]}  Ra6 {[%clk 0:00:05]} 38. Be7+ {[%clk 0:00:16]}  Kc7 {[%clk 0:00:05]} 39. a4 {[%clk 0:00:16]}  Rb6 {[%clk 0:00:05]} 40. b4 {[%clk 0:00:16]}  Rb8 {[%clk 0:00:05]} 41. Bc5 {[%clk 0:00:15]}  Rh8 {[%clk 0:00:05]} 42. a5 {[%clk 0:00:15]}  Rh2+ {[%clk 0:00:05]} 43. Kd3 {[%clk 0:00:16]}  Rb2 {[%clk 0:00:05]} 44. Kd4 {[%clk 0:00:15]}  Rd2+ {[%clk 0:00:04]} 45. Ke5 {[%clk 0:00:15]}  Rc2 {[%clk 0:00:05]} 46. e4 {[%clk 0:00:14]}  Rxc4 {[%clk 0:00:05]} 47. a6 {[%clk 0:00:13]}  Rc1 {[%clk 0:00:04]} 48. a7 {[%clk 0:00:13]}  Ra1 {[%clk 0:00:04]} 49. Rg8 {[%clk 0:00:14]}  Bc8 {[%clk 0:00:04]} 50. f5 {[%clk 0:00:10]}  exf5 {[%clk 0:00:04]} 51. exf5 {[%clk 0:00:11]}  Re1+ {[%clk 0:00:04]} 52. Kf6 {[%clk 0:00:11]}  Ra1 {[%clk 0:00:04]} 53. Kf7 {[%clk 0:00:09]}  Ra2 {[%clk 0:00:03]} 54. f6 {[%clk 0:00:09]}  Ra1 {[%clk 0:00:03]} 55. Re8 {[%clk 0:00:07]}  Ra2 {[%clk 0:00:03]} 56. Kf8 {[%clk 0:00:07]}  Ra1 {[%clk 0:00:03]} 57. f7 {[%clk 0:00:08]}  Ra2 {[%clk 0:00:04]} 58. Kg7 {[%clk 0:00:07]}  Rg2+ {[%clk 0:00:03]} 59. Kh6 {[%clk 0:00:07]}  Rh2+ {[%clk 0:00:04]} 60. Kg5 {[%clk 0:00:07]}  Rg2+ {[%clk 0:00:04]} 61. Kh4 {[%clk 0:00:07]}  Rg4+ {[%clk 0:00:04]} 62. Kh5 {[%clk 0:00:08]}  Rf4 {[%clk 0:00:04]} 63. f8=Q {[%clk 0:00:08]}  Bg4+ {[%clk 0:00:03]} 64. Kg5 {[%clk 0:00:08]}  Rxf8 {[%clk 0:00:03]} 65. Rxf8 {[%clk 0:00:08]}  Bc8 {[%clk 0:00:03]} 66. a8=Q {[%clk 0:00:08]}  Bd7 {[%clk 0:00:03]} 67. Qa7# {[%clk 0:00:09]} 1-0


[Site "https://www.chess.com"]

[Event "Titled Tuesday Blitz May 16 Late 2023"]
[White "Martinez Alcantara, Jose Eduardo"]
[Black "Rodriguez Santiago, Jaime"]
[WhiteFideId "3805662"]
[BlackFideId "3100898"]
[WhiteElo "2711"]
[BlackElo "2025"]
[Result "1-0"]
[Round "05"]
[TimeControl "180+2"]
[Date "2023.05.16"]
[WhiteClock "0:01:54"]
[BlackClock "0:00:46"]

1. e4 {[%clk 0:03:00]}  c6 {[%clk 0:02:59]} 2. d4 {[%clk 0:03:00]}  d5 {[%clk 0:02:59]} 3. e5 {[%clk 0:03:01]}  Bf5 {[%clk 0:02:59]} 4. h4 {[%clk 0:03:01]}  h5 {[%clk 0:02:58]} 5. Bd3 {[%clk 0:03:01]}  Bxd3 {[%clk 0:02:59]} 6. Qxd3 {[%clk 0:03:02]}  Qa5+ {[%clk 0:02:58]} 7. b4 {[%clk 0:03:02]}  Qa6 {[%clk 0:02:57]} 8. e6 {[%clk 0:03:00]}  Qxd3 {[%clk 0:02:53]} 9. cxd3 {[%clk 0:03:01]}  Nf6 {[%clk 0:02:49]} 10. Nd2 {[%clk 0:02:55]}  fxe6 {[%clk 0:02:39]} 11. Ndf3 {[%clk 0:02:52]}  Nbd7 {[%clk 0:02:39]} 12. Nh3 {[%clk 0:02:45]}  e5 {[%clk 0:02:25]} 13. dxe5 {[%clk 0:02:45]}  Ng4 {[%clk 0:02:24]} 14. d4 {[%clk 0:02:45]}  e6 {[%clk 0:02:24]} 15. Bd2 {[%clk 0:02:45]}  Be7 {[%clk 0:02:16]} 16. Nf4 {[%clk 0:02:43]}  Nf8 {[%clk 0:02:10]} 17. O-O {[%clk 0:02:42]}  Kd7 {[%clk 0:02:01]} 18. Rab1 {[%clk 0:02:41]}  a6 {[%clk 0:01:56]} 19. a4 {[%clk 0:02:40]}  g6 {[%clk 0:01:30]} 20. Rfc1 {[%clk 0:02:37]}  Nh6 {[%clk 0:01:27]} 21. b5 {[%clk 0:02:33]}  axb5 {[%clk 0:01:26]} 22. axb5 {[%clk 0:02:34]}  Ra7 {[%clk 0:01:22]} 23. bxc6+ {[%clk 0:02:31]}  bxc6 {[%clk 0:01:22]} 24. Rb6 {[%clk 0:02:27]}  Rc7 {[%clk 0:01:21]} 25. Ra6 {[%clk 0:02:27]}  Nf5 {[%clk 0:01:04]} 26. Ba5 {[%clk 0:02:20]}  Rc8 {[%clk 0:01:03]} 27. Ra7+ {[%clk 0:02:20]}  Ke8 {[%clk 0:01:02]} 28. g3 {[%clk 0:02:15]}  c5 {[%clk 0:00:59]} 29. dxc5 {[%clk 0:01:56]}  Bxc5 {[%clk 0:00:59]} 30. Nd3 {[%clk 0:01:54]}  Bxa7 {[%clk 0:00:57]} 31. Rxc8+ {[%clk 0:01:54]}  Kf7 {[%clk 0:00:46]} 32. Rc7+ {[%clk 0:01:54]} 1-0


[Site "https://www.chess.com"]